Cogmind - Beta 13 @@@ ROGUE MODE // 2024.04.11 @ 05:18:36 Player: Aavak Result: Self-destructed Performance ------------- Evolutions (2) 1000 Regions Visited (5) 1000 Robots Destroyed (37) 185 Value Destroyed (769) 769 Prototype IDs (2) 40 Alien Tech Used (0) 0 Bonus (60) 60 TOTAL SCORE: 3054 Bonus ------- Follower Combat Kills 60 Cogmind --------- Core Integrity 260/550 Matter 290/300 Energy 14/100 System Corruption 0% Temperature Cool (0) Movement Core (300) Ox5 Location -8/Materials Parts ------- > --- POWER (1) -------- (None) > --- PROPULSION (4) --- (None) > --- UTILITY (4) ------ Medium Storage Unit Improved Signal Interpreter Transmission Jammer Hacking Suite > --- WEAPON (2) ------- Proton Missile Launcher > --- INVENTORY (10) --- Light Nuclear Core Weight Redist. System Experimental Sensor Array Peak State ------------ > --- POWER ------------ Light Angular Momentum Engine > --- PROPULSION ------- Improved Hover Unit Improved Hover Unit Airjet Airjet > --- UTILITY ---------- Improved Sensor Array Improved Signal Interpreter Transmission Jammer Hacking Suite > --- WEAPON ----------- Heavy EM Pulse Gun Chainsword > --- INVENTORY -------- Light Nuclear Core Medium Storage Unit Weight Redist. System Experimental Sensor Array Proton Missile Launcher [Rating: 35] Favorites ----------- Power Light Angular Momentum Engine Engine Light Angular Momentum Engine Propulsion Wheel Treads Light Treads Wheel Wheel Hover Unit Improved Hover Unit Utility Medium Storage Unit Device Sensor Array Storage Medium Storage Unit Processor Improved Signal Interpreter Hackware Hacking Suite Weapon Heavy EM Pulse Gun Energy Gun Heavy EM Pulse Gun Ballistic Gun Assault Rifle Launcher Proton Missile Launcher Impact Weapon Heavy Hammer Slashing Weapon Chainsword Build | -11 -10 -10 -10 -9 -8 ------- Run | Yrd Mat Min Exi Min Mat Slots Evolved 4 | . . . . . 4 Power . | . . . . . . Propulsion 2 | . . . . . 2 Utility 2 | . . . . . 2 Weapon . | . . . . . . Parts Attached 41 | 9 13 3 1 . 15 Power 4 | 1 2 1 . . . Engine 4 | 1 2 1 . . . Core . | . . . . . . Reactor . | . . . . . . Propulsion 17 | 3 5 2 . . 7 Treads 2 | 1 . . . . 1 Leg . | . . . . . . Wheel 10 | 2 5 2 . . 1 Hover 5 | . . . . . 5 Flight . | . . . . . . Utility 13 | 3 3 . 1 . 6 Device 7 | 2 2 . . . 3 Storage 3 | 1 1 . . . 1 Processor 2 | . . . . . 2 Hackware 1 | . . . 1 . . Protection . | . . . . . . Artifact . | . . . . . . Weapon 7 | 2 3 . . . 2 Energy Gun 2 | 1 1 . . . . Energy Cannon . | . . . . . . Ballistic Gun 2 | 1 1 . . . . Ballistic Cannon . | . . . . . . Launcher 1 | . . . . . 1 Special Weapon . | . . . . . . Impact Weapon 1 | . 1 . . . . Slashing Weapon 1 | . . . . . 1 Piercing Weapon . | . . . . . . Special Melee Weapon . | . . . . . . Unidentified Prototypes . | . . . . . . Parts Lost 10 | . 3 . . . 7 Power 1 | . . . . . 1 Propulsion 5 | . 1 . . . 4 Utility 2 | . 1 . . . 1 Weapon 2 | . 1 . . . 1 Highest Loss Streak 5 | . 3 . . . 5 To Critical Strikes . | . . . . . . Average Slot Usage (%) 97 | . 98 100 100 88 97 Engine 12 | . 14 14 14 14 8 Wheel 21 | . 27 28 28 17 5 Hover 6 | . . . . . 28 Device 10 | . 13 14 2 . 16 Storage 11 | . 14 14 14 14 . Processor 1 | . . . . . 9 Hackware 5 | . . . 11 14 9 Energy Gun 11 | . 6 14 14 14 8 Ballistic Gun 3 | . 15 . . . . Impact Weapon 9 | . 6 14 14 14 . Slashing Weapon 1 | . . . . . 8 Naked Turns . | . . . . . . Heaviest Build 26 | 13 22 26 26 25 26 Greatest Support 30 | 20 20 20 20 20 30 Greatest Overweight (x) 2 | 1 1 2 1 2 . Average Overweight (x) . | . . 1 1 1 . Largest Inventory Capacity 10 | 8 10 10 10 10 10 Average Capacity 8 | 7 9 10 10 10 5 Most Carried 10 | 8 10 10 10 10 9 Average Carried 8 | 4 9 9 10 10 4 Final Capacity 10 | 8 10 10 10 10 10 Final Carried 10 | 8 10 10 10 10 3 Class Distribution -------------------- 64% | Mutant 35% | Scavenger-Mutant Dominant Class ---------------- Mutant | -10/Materials Mutant | -10/Mines Scavenger-Mutant | -10/Exiles Mutant | -9/Mines Scavenger-Mutant | -8/Materials Resources | -11 -10 -10 -10 -9 -8 ----------- Run | Yrd Mat Min Exi Min Mat Matter Collected 1177 | 296 580 87 . 75 139 Remotely . | . . . . . . Salvage Created 1229 | 99 381 117 . 190 442 Parts 80 | 7 29 6 . 10 28 Haulers Intercepted 1 | . 1 . . . . Recyclers Shooed . | . . . . . . Parts Field Recycled . | . . . . . . Retrieved Matter . | . . . . . . Parts Self-Destructed . | . . . . . . Prevented . | . . . . . . Kills | -11 -10 -10 -10 -9 -8 ------- Run | Yrd Mat Min Exi Min Mat Combat Hostiles Destroyed 13 | . 2 2 . 3 6 Melee 5 | . . . . . 5 Guns 8 | . 2 2 . 3 1 Classes Destroyed 12 | 2 7 . . 1 2 Worker 4 | . 2 1 . 1 . Builder 7 | . 6 1 . . . Tunneler 3 | 1 . . . 1 1 Hauler 1 | . 1 . . . . Recycler 2 | 1 1 . . . . Mechanic 1 | . 1 . . . . Operator 1 | . 1 . . . . Watcher 5 | . 1 . . . 4 Grunt 9 | . 2 2 . 2 3 Duelist 1 | . . . . 1 . Sentry 2 | . . . . . 2 Hunter 1 | . . . . . 1 Best Kill Streak 8 | 2 8 2 . 2 2 Combat Bots Only 2 | . 2 2 . 2 2 Max Kills in Single Turn 1 | 1 1 1 . 1 1 Gunslinging . | . . . . . . Exploded . | . . . . . . Melee 1 | . . . . . 1 Uniques/NPCs Destroyed . | . . . . . . Combat | -11 -10 -10 -10 -9 -8 -------- Run | Yrd Mat Min Exi Min Mat Hostile Shots Fired 88 | . 18 . . 10 60 Missed 29 | . 4 . . 3 22 Damage Taken 1364 | . 531 . . 175 658 Core 503 | . 163 . . 50 290 Absorbed by Shields . | . . . . . . Core Remaining (%) 57 | 100 . . . 14 . Volleys Fired 58 | 2 28 2 . 17 9 Largest 2 | 2 2 1 . 1 1 Hottest 60 | 60 60 45 . 45 45 Shots Fired 87 | 4 53 3 . 18 9 Gun 87 | 4 53 3 . 18 9 Cannon . | . . . . . . Launcher . | . . . . . . Special . | . . . . . . Kinetic 36 | 2 34 . . . . Thermal . | . . . . . . Explosive . | . . . . . . Electromagnetic 51 | 2 19 3 . 18 9 Robot Hit Streak 14 | 2 14 4 . 7 2 Robot Miss Streak 7 | . 7 . . 2 2 Penetration Max . | . . . . . . Secondary Targets . | . . . . . . Shots Hit Robots 85 | 2 36 4 . 15 28 Core Hits 41 | 2 19 2 . 6 12 Critical Kills . | . . . . . . Critical Parts Destroyed 1 | . 1 . . . . Critical Strikes 7 | . 2 . . . 5 Corrupt 1 | . 1 . . . . Smash 1 | . 1 . . . . Sever 5 | . . . . . 5 Melee Attacks 63 | . 10 2 . 2 49 Impact 14 | . 10 2 . 2 . Slashing 49 | . . . . . 49 Piercing . | . . . . . . Sneak Attacks 5 | . 1 2 . 1 1 Combat Hostiles . | . . . . . . Follow-up Attacks . | . . . . . . Damage Inflicted 2259 | 27 727 194 . 372 939 Guns 771 | 27 452 33 . 195 64 Cannons . | . . . . . . Explosions 189 | . 90 . . 99 . Melee 1272 | . 158 161 . 78 875 Ramming 27 | . 27 . . . . Kinetic 277 | . 277 . . . . Thermal 189 | . 90 . . 99 . Explosive . | . . . . . . Electromagnetic 494 | 27 175 33 . 195 64 Impact 397 | . 158 161 . 78 . Slashing 875 | . . . . . 875 Piercing . | . . . . . . Highest Corruption 8 | . 8 8 8 8 . Average Corruption 7 | . 7 8 8 8 . Corruption Purged . | . . . . . . Corruption Blocked . | . . . . . . Effects 85 | . 20 26 21 18 . Message Errors 16 | . 3 4 4 5 . Matter Fused 23 | . 7 7 4 5 . Heat Flow Errors 12 | . 4 4 3 1 . Energy Discharges 16 | . 3 4 6 3 . Parts Rejected 1 | . . 1 . . . Data Loss (minor) 10 | . 2 2 4 2 . Data Loss (major) 3 | . . 2 . 1 . Misfires 2 | . . 1 . 1 . Alerts 2 | . 1 1 . . . Overload Shots . | . . . . . . Overflow Damage 287 | . 104 96 . 22 65 Projectiles . | . . . . . . Explosions 20 | . 20 . . . . Melee 267 | . 84 96 . 22 65 Knockbacks 3 | . 1 2 . . . Impact 3 | . 1 2 . . . Kinetic . | . . . . . . Secondary . | . . . . . . Self-Inflicted Damage 96 | . 51 . . 45 . Shots 2 | . 1 . . 1 . Rammed 4 | . 4 . . . . Targets Rammed 4 | . 4 . . . . Kicked . | . . . . . . Crushed . | . . . . . . Highest Temperature 275 | . 221 207 234 275 46 Average Temperature 58 | . 43 72 107 57 14 Received Heat Transfer 378 | . 84 . . 24 270 Siege Activations . | . . . . . . Robots Corrupted . | . . . . . . Combat Hostiles . | . . . . . . Parts Fried 10 | . 3 1 . 6 . Impact Corruptions 9 | . 3 4 . 2 . Robots Melted . | . . . . . . Combat Hostiles . | . . . . . . Parts Melted 3 | . . . . . 3 Heat Transferred 250 | . 150 . . 100 . Parts Sabotaged . | . . . . . . Parts Stolen . | . . . . . . Parts Stripped . | . . . . . . Power Chain Reactions 2 | . 1 . . 1 . Alert | -11 -10 -10 -10 -9 -8 ------- Run | Yrd Mat Min Exi Min Mat Peak Influence 269 | 10 132 52 . 103 269 Initial 21 | . 6 21 . . . Average 54 | 5 60 22 . 51 94 Maximum Alert Level 1 | . . . . . 1 Low Security (%) 98 | 100 100 100 . 100 94 Level 1 1 | . . . . . 5 Level 2 . | . . . . . . Level 3 . | . . . . . . Level 4 . | . . . . . . Level 5 . | . . . . . . High Security . | . . . . . . Max Security . | . . . . . . Squads Dispatched 11 | . 4 . . 2 5 Investigation 9 | . 3 . . 2 4 Extermination . | . . . . . . Reinforcement 2 | . 1 . . . 1 Assault . | . . . . . . Garrison . | . . . . . . Intercept . | . . . . . . Searches Triggered . | . . . . . . Construction Impeded . | . . . . . . Haulers Reinforced . | . . . . . . Active Scanning Responses . | . . . . . . Cargo Convoy Interrupts . | . . . . . . Stealth | -11 -10 -10 -10 -9 -8 --------- Run | Yrd Mat Min Exi Min Mat Distress Signals 3 | . 2 . . . 1 Communications Jammed 8 | . . . . . 8 Distress Signals 8 | . . . . . 8 Times Spotted 52 | . 11 6 . 6 29 Peak Tracking Total 8 | . 4 2 . 2 8 Tactical Retreats 6 | . . . . . 6 Traps | -11 -10 -10 -10 -9 -8 ------- Run | Yrd Mat Min Exi Min Mat Traps Triggered 2 | . 2 . . . . Indirectly . | . . . . . . Trap Hack Attempts . | . . . . . . Triggered . | . . . . . . Disarmed . | . . . . . . Reprogrammed 6 | . . . . . 6 Reused 1 | . . . . . 1 Traps Extracted . | . . . . . . Installed . | . . . . . . Triggered 1 | . . . . . 1 Machines | -11 -10 -10 -10 -9 -8 ---------- Run | Yrd Mat Min Exi Min Mat Machines Disabled . | . . . . . . Max in Single Turn . | . . . . . . Machines Repaired . | . . . . . . Machines Dismantled . | . . . . . . Machines Sabotaged . | . . . . . . Overloaded Fab Kills . | . . . . . . Hacking | -11 -10 -10 -10 -9 -8 --------- Run | Yrd Mat Min Exi Min Mat Machines Accessed 15 | . 7 . . 2 6 Terminals 13 | . 6 . . 1 6 Fabricators . | . . . . . . Repair Stations . | . . . . . . Recycling Units 1 | . 1 . . . . Scanalyzers . | . . . . . . Garrison Access . | . . . . . . Total Hacks 61 | . 28 . . 4 29 Successful 38 | . 16 . . 4 18 Failed 23 | . 12 . . . 11 Catastrophic 2 | . 1 . . . 1 Database Lockouts . | . . . . . . Manual 47 | . 19 . . 2 26 Terminals 58 | . 26 . . 3 29 Fabricators . | . . . . . . Repair Stations . | . . . . . . Recycling Units 2 | . 2 . . . . Scanalyzers . | . . . . . . Garrison Access . | . . . . . . Terminal Hacks 19 | . 7 . . 2 10 Record 2 | . . . . . 2 Robot Analysis 1 | . . . . . 1 Prototype ID Bank 1 | . 1 . . . . Open Door 1 | . . . . 1 . Level Access Points 1 | . . . . . 1 Terminal Index 2 | . 1 . . . 1 Recycling Unit Index 1 | . 1 . . . . Alert Level 2 | . . . . . 2 Locate Traps 2 | . 2 . . . . Reprogram Traps 1 | . . . . . 1 Recall Investigation 2 | . 1 . . . 1 Recall Reinforcements 1 | . . . . . 1 Hauler Manifests 1 | . 1 . . . . Zone Layout 1 | . . . . 1 . Fabricator Hacks . | . . . . . . Repair Station Hacks . | . . . . . . Recycling Unit Hacks 2 | . 2 . . . . Report Inventory 1 | . 1 . . . . Retrieve Components 1 | . 1 . . . . Scanalyzer . | . . . . . . Garrison Access Hacks . | . . . . . . Unauthorized Hacks 17 | . 7 . . 2 8 Terminals 17 | . 7 . . 2 8 Track 3 | . 1 . . 1 1 Botnet 12 | . 5 . . 1 6 Operators 2 | . 1 . . . 1 Fabricators . | . . . . . . Repair Stations . | . . . . . . Recycling Units . | . . . . . . Scanalyzers . | . . . . . . Garrison Access . | . . . . . . Data Cores Recovered . | . . . . . . Used . | . . . . . . Hacking Detections 13 | . 6 . . 1 6 Full Trace Events 8 | . 4 . . 1 3 Feedback Events . | . . . . . . Feedback Blocked . | . . . . . . Robot Schematics Acquired . | . . . . . . Robots Built . | . . . . . . Authchips . | . . . . . . Time . | . . . . . . Total Robot Build Rating . | . . . . . . Part Schematics Acquired . | . . . . . . Parts Built . | . . . . . . Authchips . | . . . . . . Time . | . . . . . . Total Part Build Rating . | . . . . . . Parts Repaired . | . . . . . . Time . | . . . . . . Parts Recycled . | . . . . . . Recycled Matter . | . . . . . . Retrieved Matter . | . . . . . . Retrieved Components 10 | . 10 . . . . Parts Scanalyzed . | . . . . . . Part Schematics Acquired . | . . . . . . Parts Damaged . | . . . . . . Bothacking | -11 -10 -10 -10 -9 -8 ------------ Run | Yrd Mat Min Exi Min Mat Used RIF Installer . | . . . . . . Robots Hacked . | . . . . . . Non-combat . | . . . . . . Combat . | . . . . . . Robot Hacks Applied . | . . . . . . Relay Couplers Released . | . . . . . . Fabnet Peak Effective % . | . . . . . . Robots Rewired . | . . . . . . Allies Hacked . | . . . . . . Hacks Repelled . | . . . . . . Allies | -11 -10 -10 -10 -9 -8 -------- Run | Yrd Mat Min Exi Min Mat Total Allies 5 | . . 5 . . . Largest Group 5 | . . 5 1 . . Highest-Rated Group 92 | . . 92 21 . . Highest-Rated Ally 31 | . . 31 21 . . Total Orders . | . . . . . . Ally Attacks 20 | . . 20 . . . Total Damage 314 | . . 314 . . . Kills 3 | . . 3 . . . Allies Corrupted . | . . . . . . Allies Melted . | . . . . . . Intel | -11 -10 -10 -10 -9 -8 ------- Run | Yrd Mat Min Exi Min Mat Robot Analysis Total 1 | . . . . . 1 Derelict Logs Recovered 2 | . . 1 . 1 . Drone Launches . | . . . . . . Drone Recoveries . | . . . . . . Exploration | -11 -10 -10 -10 -9 -8 ------------- Run | Yrd Mat Min Exi Min Mat Turns Passed 3504 | 81 701 871 572 525 754 Spaces Moved 3180 | 63 634 799 578 448 658 Core 7 | 7 . . . . . Treads . | . . . . . . Legs . | . . . . . . Wheels 2515 | 56 634 799 578 448 . Hover 658 | . . . . . 658 Flight . | . . . . . . Fastest Speed 48 | 50 80 95 95 95 48 Average Speed 85 | 82 83 95 95 105 54 Slowest Speed 110 | 95 95 110 95 110 72 Overloaded Moves . | . . . . . . Propulsion Burnouts . | . . . . . . Robots Hopped . | . . . . . . Cave-ins Triggered 1 | . 1 . . . . Exploration Rate (%) 70 | 4 97 99 90 94 38 Regions Visited 5 Branch Regions 3 Pre-discovered Areas 1 | . . 1 . . . Known Exits Taken . | . . . . . . Unknown Exits Taken 5 | 1 1 1 1 1 . Scrap Searched 3 | . . 1 . 2 . Spaces Dug 23 | . 7 . . . 16 Terrain Destroyed 34 | . 13 . . 5 16 Melee 23 | . 7 . . . 16 Projectile . | . . . . . . AOE 11 | . 6 . . 5 . Terrain Rammed . | . . . . . . Walls Destroyed . | . . . . . . Machines Disabled . | . . . . . . Actions | -11 -10 -10 -10 -9 -8 --------- Run | Yrd Mat Min Exi Min Mat Total 3778 | 84 737 906 600 480 971 Wait 359 | . 15 93 8 12 231 Move 3175 | 62 633 798 577 447 658 Hop . | . . . . . . Pick Up 33 | 10 17 3 . 1 2 Fast Attach 14 | 6 3 1 . . 4 Attach 10 | 1 1 . . . 8 Detach . | . . . . . . Swap 17 | 2 9 2 1 . 3 Drop 31 | 1 17 5 . 1 7 Fire 58 | 2 28 2 . 17 9 Melee 63 | . 10 2 . 2 49 Ram 4 | . 4 . . . . Kick . | . . . . . . Crush . | . . . . . . Escape Stasis . | . . . . . . Rewire 14 | . . . 14 . . Trap . | . . . . . . Miscellaneous . | . . . . . . Route ------- -11/Scrapyard -10/Materials (discovered 5 exits: [*Mat x3] / [*Min x2]) -10/Mines (discovered 3 exits: [*Mat x2] / *Exi) -10/Exiles (discovered 2 exits: *Min x2) -9/Mines -8/Materials (discovered 3 exits: Fac x3) History --------- Turn | Location | Event 5 | -11/Scrapyard | Discovered new exit (range 16) 82 | -11/Scrapyard | Entered Materials 201 | -10/Materials | Met 8R-AWN 210 | -10/Materials | Discovered new exit (range 15) 238 | -10/Materials | Crushed by falling debris 238 | -10/Materials | Core integrity fell below 50% 269 | -10/Materials | Lost 3 parts (1n1u1w) 320 | -10/Materials | Build established: Mutant 353 | -10/Materials | Discovered new exit (range 8) 437 | -10/Materials | Discovered new exit (range 10) 612 | -10/Materials | Discovered new exit (range 16) 731 | -10/Materials | Discovered new exit (range 15) 783 | -10/Materials | Entered Mines 784 | -10/Mines | Followed 8R-AWN into the Mines 850 | -10/Mines | Found a damaged Exp. Sensor Array with a note attached 853 | -10/Mines | Found Prototype Device 1044 | -10/Mines | Assisted by bots powering up and referring to "LRC-V3" 1140 | -10/Mines | Lost 3 allies 1233 | -10/Mines | Discovered new exit (range 15) 1268 | -10/Mines | Joined a pair of Derelicts in attacking an 0b10 outpost 1570 | -10/Mines | Discovered new exit (range 10) 1615 | -10/Mines | Discovered new exit (range 5) 1654 | -10/Mines | Entered Exiles 1654 | -10/Exiles | Accompanied by 1 ally 1669 | -10/Exiles | Discovered new exit (range 14) 1684 | -10/Exiles | Welcomed by 8R-AWN 1734 | -10/Exiles | Learned about 8R-AWN's background 1741 | -10/Exiles | Met EX-HEX 1847 | -10/Exiles | Met EX-DEC 1876 | -10/Exiles | Visited The Gauntlet 2069 | -10/Exiles | Discovered new exit (range 11) 2080 | -10/Exiles | Build established: Scavenger-Mutant 2120 | -10/Exiles | Met EX-BIN 2226 | -10/Exiles | Entered Mines 2387 | -9/Mines | Core integrity fell below 20% 2497 | -9/Mines | Met a Derelict shopkeep closing up shop 2675 | -9/Mines | Build established: Mutant 2741 | -9/Mines | Discovered new exit (range 10) 2751 | -9/Mines | Entered Materials 2751 | -8/Materials | Evolved 4 slots: Propulsion x2, Utility x2 3052 | -8/Materials | Build established: Scavenger-Mutant 3435 | -8/Materials | Identified exit to Factory 3504 | -8/Materials | Core integrity fell below 50% 3505 | -8/Materials | Self-destructed Last Messages --------------- 03460_ K-01 Serf collects debris. 03465_ U-05 Engineer builds a Wall. 03471_ R-06 Scavenger inserts Unknown Leg into recycling unit. 03472_ Recycling unit begins recycling process. 03474_ R-06 Scavenger inserts Unknown Ballistic Gun into recycling unit. 03477_ R-06 Scavenger inserts Targeting Computer into recycling unit. 03478_ Recycling unit begins recycling process. 03479_ Recycling unit begins matter transfer process. 03480_ Airjet destroyed. 03480_ R-06 Scavenger inserts Aluminum Leg into recycling unit. 03482_ Airjet destroyed. 03488_ Lgt. Angular Momentum Engine destroyed. 03489_ G-47 Trooper destroyed. 03501_ Imp. Hover Unit severed. 03503_ Chainsword severed. Map ----- +----------------------------------------------------+ | ????????????????????????????????????????????????? | | ???????????????????????????????????????????? ?? | | ???????????????????????????????????????????# ? | | ???????????????????????????????????????????# #? | | ???????????????????????????????????????????# #? | | ???????????????????????????????????????????# #? | | ???????????????????????????????????????????+ +? | | ???????????????????????????????????????????# #? | | ???????????????????????????????????????????# #? | | ???????????????????????????????????????????# #? | | ???????????????????????????????????????????# #? | | ?????????????????????????????+?????????????# #? | | ?????????????????????????????# ????????????# #? | | ?????????????????????????????# ############# ## | | ?????????????????????????????# | | ?????????????????????????????+ | | ?????????????????????????????# o | | ????????????????????????????????# ####+####### | | ????????????????????????????????# #! % #???# | | ????????????????????????????????# # ###?# | | ?????????????????????#########??# # # #?# | | ?????????????????????# #??# # "T *###?# | | ?????????????????????#"" """ #??# # "" #???# | | ?????????????????????#"Y """ #??# # #???# | | ?????????????????????#""/""" #??# #########??# | | ?????????????????????# =@% #??# #??????##??# | | ???????????##+###########l####### #??????????# | | ?????????? gg #????????### | | ?????????< gg ########## | | ?????????? o k | | ???????????+####### ###+############+####### | | ??????????????????# ## #??????# u! T + | | ??????????????????# ## T #??????# # | | ??????????????????# ## #??????# # | | ??????????????????#% ## !#??????# #^^^ | | ??????????????????#! =## !#??????#####"#####^^^ | | ?????????????????## [=## ########?## ##???# a | | ?????????????????# !!%*####### ########### | | ?????????????????# %= | | ?????????????????# T T | | ?????????????????# | | ?????????????????# ####### ! ########### | | ?????????????????#### ##?????#######?????????# | | ????????????????????# #??????????????????????# | | ????????????????????# #??????????????????????# | | ????????????????????# #??????????????????????# | | ????????????????????# #??????????????????????# | | ???????????????????? #??????????????????????# | | ???????????????????? /??????????????????????# | | ????????????????????###??????????????????##### | +----------------------------------------------------+ Best States ------------- Heat Dissipation 31 Energy Generation 18 Energy Capacity 250 Matter Stores 300 Matter Capacity 300 Sight Range 16 Robot Scan Range 15 Terrain Scan Range 16 Terrain Scan Density 10 Jamming Range 12 Evasion (%) 55 Recoil Reduction 1 Offensive Hacking 10 Item Schematics ----------------- None Robot Schematics ------------------ None Fabricated ------------ Nothing Alien Tech Used ----------------- None Achievements -------------- GoHome() Party Time Challenges ------------ None Game ------ Seed EnhancedSignalNanosword Manual? 0 Play Time 01:08:43 Cumulative 13.9 hours Start 2024.04.10 @ 00:31:32 End 2024.04.11 @ 05:18:36 Sessions 2 Manual Loads 0 Difficulty Rogue Special Mode None Game No. 12 Rogue 12 Adventurer 0 Explorer 0 Win Type - Total 0 Types 0/0/0/0/0/0/0/0/0 Lore% 15 Gallery% 13 Achievement% 14 Wizard Run 0 Options --------- Layout 1 ASCII 0 Keyboard 0 Movement Mouse Keybinds 0 Fullscreen 2 Font 24/Smallcaps Map View 50x35 Zoom Use 0% Tactical HUD 1 Map Filters NONE Filters NONE Steam 1 RUN: b80ffbf6-051c-404e-aa5c-ff8c5ea21f60